fUSD/lending_fUSD_20260613
["ID","MTS","AMOUNT","RATE_DAILY","PERIOD"]
[424931019,1781286984000,-500.0,9.617e-05,2]
[424931020,1781287017000,-2080.17592889,9.519e-05,2]
[424931022,1781287038000,-419.82407111,9.519e-05,2]
[424931024,1781287093000,-500.0,9.616e-05,2]
[424931025,1781287146000,-500.0,9.518e-05,2]
[424931026,1781287199000,-500.0,9.518e-05,2]
[424931028,1781287254000,-281.0,9.517e-05,2]
[424931029,1781287305000,-500.0,9.517e-05,2]
[424931031,1781287361000,-500.0,9.517e-05,2]
[424931032,1781287558000,-415.435,9.427e-05,2]
[424931034,1781287559000,-100.63161387,9.515e-05,2]
[424931033,1781287559000,-500.0,9.515e-05,2]
[424931035,1781287613000,-399.36838613,9.519e-05,2]
[424931036,1781287628000,-477.86735208,9.514e-05,2]
[424931037,1781287665000,-22.13264792,9.514e-05,2]
[424931039,1781287668000,307.63570251,0.0001,5]
[424931038,1781287668000,-288.98333946,9.514e-05,2]
[424931040,1781287720000,-211.01666054,9.514e-05,2]
[424931041,1781287772000,-500.0,9.518e-05,2]
[424931043,1781287817000,150.0,0.0002,120]
[424931042,1781287817000,-505.95994786,9.518e-05,2]
[424931046,1781287831000,-500.0,9.518e-05,2]
[424931048,1781287831000,-500.0,9.518e-05,2]
[424931050,1781287831000,-287.51677326,9.518e-05,2]
[424931049,1781287831000,-500.0,9.518e-05,2]
[424931053,1781287831000,-523.79162307,9.519e-05,2]
[424931047,1781287831000,-500.0,9.518e-05,2]
[424931051,1781287831000,-212.48322674,9.518e-05,2]
[424931052,1781287831000,-1556.38427693,9.519e-05,2]
[424931059,1781287831000,-11873.12937199,9.519e-05,2]
[424931058,1781287831000,-303.72702952,9.519e-05,2]
[424931054,1781287831000,-2500.0,9.519e-05,2]
[424931055,1781287831000,-200025.01168833,9.519e-05,2]
[424931057,1781287831000,-3756.4120609,9.519e-05,2]
[424931061,1781287831000,-1079.96336635,9.519e-05,2]
[424931060,1781287831000,-836.38742294,9.519e-05,2]
[424931062,1781287831000,-406.63837747,9.519e-05,2]
[424931063,1781287831000,-496.77874622,9.519e-05,2]
[424931056,1781287831000,-1081.52417762,9.519e-05,2]
[424931070,1781287837000,-3125.7978238,9.519e-05,2]
[424931069,1781287837000,-6205.00715058,9.519e-05,2]
[424931073,1781287837000,-533.17166479,9.519e-05,2]
[424931072,1781287837000,-1552.75300336,9.519e-05,2]
[424931071,1781287837000,-1321.35905436,9.519e-05,2]
[424931074,1781287838000,-1203.04060965,9.519e-05,2]
[424931220,1781287841000,-344.09,9.519e-05,2]
[424931218,1781287841000,-2365.275,9.519e-05,2]
[424931219,1781287841000,-1511.0,9.519e-05,2]
[424931217,1781287841000,-260.99234618,9.519e-05,2]
[424931216,1781287841000,-532.31760081,9.519e-05,2]
[424931241,1781287861000,-2206.12181778,9.519e-05,2]
[424931242,1781287861000,-1258979.50168735,9.519e-05,2]
[424931243,1781287861000,-583869.83308294,9.519e-05,2]
[424931248,1781287861000,-655.28295906,9.519e-05,2]
[424931245,1781287861000,-1000.04798855,9.519e-05,2]
[424931247,1781287861000,-1497074.15325313,9.519e-05,2]
[424931246,1781287861000,-32.10925994,9.519e-05,2]
[424931244,1781287861000,-871.6875,9.519e-05,2]
[424931265,1781287862000,-500.0,9.614e-05,2]
[424931266,1781287862000,-571.11838094,9.614e-05,2]
[424931269,1781287862000,-500.0,9.614e-05,2]
[424931270,1781287862000,-226.00785,9.614e-05,2]
[424931267,1781287862000,-500.0,9.614e-05,2]
[424931268,1781287862000,-271.36719688,9.614e-05,2]
[424931272,1781287862000,-500.0,9.614e-05,2]
[424931274,1781287862000,-500.0,9.614e-05,2]
[424931273,1781287862000,-230.76680769,9.614e-05,2]
[424931275,1781287862000,-160.0,9.647e-05,2]
[424931276,1781287862000,-201.0,9.989e-05,2]
[424931264,1781287862000,-1694.26242509,9.589e-05,2]
[424931271,1781287862000,-500.0,9.614e-05,2]
[424931260,1781287862000,-4180.5245,9.519e-05,2]
[424931249,1781287862000,-1151.57,9.519e-05,2]
[424931261,1781287862000,-4951.0364,9.519e-05,2]
[424931259,1781287862000,-195283.9987104,9.519e-05,2]
[424931256,1781287862000,-574.5871689,9.519e-05,2]
[424931257,1781287862000,-1807.30741279,9.519e-05,2]
[424931263,1781287862000,-177.57493215,9.589e-05,2]
[424931262,1781287862000,-159.97171096,9.589e-05,2]
[424931255,1781287862000,-765.76984216,9.519e-05,2]
[424931254,1781287862000,-776.18,9.519e-05,2]
[424931252,1781287862000,-426.27595485,9.519e-05,2]
[424931253,1781287862000,-4173.19096819,9.519e-05,2]
[424931251,1781287862000,-209707.35570879,9.519e-05,2]
[424931250,1781287862000,-608.0,9.519e-05,2]
[424931277,1781287862000,-1000.0,9.991e-05,2]
[424931258,1781287862000,-1222.6501903,9.519e-05,2]
[424931278,1781287862000,-242.33195428,0.0001,2]
[424931279,1781287862000,-79244.0,0.0001,2]
[424931280,1781287862000,-461.36096258,0.0001,2]
[424931308,1781287862000,-376.99,0.0001156,2]
[424931307,1781287862000,-166.66,0.00011555,2]
[424931306,1781287862000,-166.66,0.00011322,2]
[424931305,1781287862000,-178.51004518,0.00011099,2]
[424931304,1781287862000,-178.5100452,0.00011099,2]
[424931303,1781287862000,-166.66,0.00011088,2]
[424931302,1781287862000,-3716.48256445,0.00011035,2]
[424931301,1781287862000,-150.0,0.00010959,2]
[424931299,1781287862000,-500.0,0.00010958,2]
[424931300,1781287862000,-500.0,0.00010958,2]
[424931298,1781287862000,-500.0,0.00010958,2]
[424931297,1781287862000,-500.0,0.00010958,2]
[424931295,1781287862000,-500.0,0.00010958,2]
[424931296,1781287862000,-500.0,0.00010958,2]
[424931309,1781287862000,-500.0,0.0001156,2]
[424931293,1781287862000,-3716.4825645,0.000109,2]
[424931292,1781287862000,-187.1,0.00010838,2]
[424931284,1781287862000,-5530.0,0.000103,5]
[424931281,1781287862000,-461.36096258,0.0001,2]
[424931282,1781287862000,-5530.0,0.000102,3]
[424931283,1781287862000,-14313.23921145,0.00010234,2]
[424931285,1781287862000,-1332.94,0.00010476,2]
[424931310,1781287862000,-158.42,0.00011709,2]
[424931286,1781287862000,-300.0,0.00010495,7]
[424931288,1781287862000,-604.93,0.00010734,2]
[424931289,1781287862000,-1099.17,0.00010812,2]
[424931290,1781287862000,-169.87,0.00010838,2]
[424931291,1781287862000,-187.1,0.00010838,2]
[424931294,1781287862000,-3716.48256445,0.000109,2]
[424931287,1781287862000,-1099.17,0.00010548,2]
[424931316,1781287863000,-302.28,0.00012093,2]
[424931312,1781287863000,-166.66,0.00011789,2]
[424931311,1781287863000,-1332.94,0.00011785,2]
[424931315,1781287863000,-166.66,0.00012022,2]
[424931314,1781287863000,-500.0,0.00011834,2]
[424931313,1781287863000,-3716.48256445,0.00011808,2]
[424931317,1781287863000,-178.51004518,0.00012145,2]
[424931320,1781287863000,-321.87,0.00012241,2]
[424931318,1781287863000,-150.0,0.00012181,2]
[424931325,1781287863000,-361.61769362,0.00012495,2]
[424931321,1781287863000,-166.66,0.00012256,2]
[424931328,1781287863000,-2737.24,0.00012509,2]
[424931327,1781287863000,-38617.30100095,0.00012509,2]
[424931319,1781287863000,-150.0,0.00012181,2]
[424931322,1781287863000,-198.34705152,0.00012329,2]
[424931324,1781287863000,-37772.86473658,0.00012384,2]
[424931323,1781287863000,-300.0,0.00012383,2]
[424931326,1781287863000,-24510.31383365,0.00012509,2]
[424931329,1781287885000,-226.51752098,0.00010471,2]
[424931330,1781287936000,-500.0,9.518e-05,2]
[424931331,1781287989000,-151.0,9.516e-05,2]
[424931332,1781288156000,-332.348,9.329e-05,2]
[424931333,1781288210000,-329.4939,9.419e-05,2]
[424931334,1781288263000,-287.94907973,9.489e-05,2]
[424931335,1781288316000,-1519.4803845,9.419e-05,2]
[424931336,1781288341000,-980.5196155,9.419e-05,2]
[424931337,1781288391000,-287.94907973,9.489e-05,2]
[424931338,1781288447000,-2500.0,9.419e-05,2]
[424931339,1781288498000,-287.94907973,9.489e-05,2]
[424931340,1781288553000,-287.94907973,9.489e-05,2]
[424931341,1781288605000,-1519.4803845,9.419e-05,2]
[424931342,1781288749000,-500.0,9.418e-05,2]
[424931344,1781288750000,-154.1091866,9.418e-05,2]
[424931343,1781288750000,-500.0,9.418e-05,2]
[424931345,1781288802000,-345.8908134,9.418e-05,2]
[424931346,1781288856000,-150.0,9.416e-05,2]
[424931347,1781288858000,-244.36479434,9.417e-05,2]
[424931348,1781288910000,-19795.16,9.408e-05,2]
[424931349,1781288932000,-9041.84353516,9.408e-05,2]
[424931350,1781288955000,-9041.84353516,9.319e-05,2]
[424931351,1781288978000,-19795.16,9.319e-05,2]
[424931352,1781288980000,-3067.44224025,9.319e-05,2]
[424931353,1781288980000,-1986.68708994,9.319e-05,2]
[424931354,1781289001000,-19795.16,9.319e-05,2]
[424931355,1781289023000,-300.0,9.318e-05,2]
[424931358,1781289031000,-3552.0436733,9.319e-05,2]
[424931356,1781289031000,-150.0,9.318e-05,2]
[424931357,1781289031000,-2627.701325,9.319e-05,2]
[424931359,1781289031000,-560.36223067,9.319e-05,2]
[424931364,1781289031000,-1254.41808677,9.319e-05,2]
[424931361,1781289031000,-137161.76186502,9.319e-05,2]
[424931365,1781289031000,-534.75899532,9.319e-05,2]
[424931363,1781289031000,-230257.35135318,9.319e-05,2]
[424931362,1781289031000,-182913.84734077,9.319e-05,2]
[424931360,1781289031000,-233671.88292683,9.319e-05,2]
[424931525,1781289059000,-500.0,9.407e-05,2]
[424931527,1781289059000,-500.0,9.407e-05,2]
[424931532,1781289059000,-500.0,9.407e-05,2]
[424931533,1781289059000,-500.0,9.407e-05,2]
[424931530,1781289059000,-500.0,9.407e-05,2]
[424931528,1781289059000,-500.0,9.407e-05,2]
[424931534,1781289059000,-500.0,9.407e-05,2]
[424931531,1781289059000,-500.0,9.407e-05,2]
[424931529,1781289059000,-500.0,9.407e-05,2]
[424931535,1781289059000,-500.0,9.407e-05,2]
[424931520,1781289059000,-446.7648595,9.407e-05,2]
[424931526,1781289059000,-500.0,9.407e-05,2]
[424931517,1781289059000,-500.0,9.407e-05,2]
[424931509,1781289059000,-1650184.89730659,9.319e-05,2]
[424931514,1781289059000,-500.0,9.407e-05,2]
[424931515,1781289059000,-534.57387271,9.407e-05,2]
[424931519,1781289059000,-210.61524784,9.407e-05,2]
[424931518,1781289059000,-500.0,9.407e-05,2]
[424931522,1781289059000,-500.0,9.407e-05,2]
[424931523,1781289059000,-207.27481237,9.407e-05,2]
[424931521,1781289059000,-452.53987333,9.407e-05,2]
[424931513,1781289059000,-500.0,9.407e-05,2]
[424931511,1781289059000,-302.50713487,9.407e-05,2]
[424931512,1781289059000,-500.0,9.407e-05,2]
[424931508,1781289059000,-3594.6820312,9.319e-05,2]
[424931510,1781289059000,-150.0,9.363e-05,2]
[424931542,1781289059000,-500.0,9.407e-05,2]
[424931516,1781289059000,-500.0,9.407e-05,2]
[424931540,1781289059000,-500.0,9.407e-05,2]
[424931524,1781289059000,-500.0,9.407e-05,2]
[424931541,1781289059000,-500.0,9.407e-05,2]
[424931567,1781289059000,-500.0,9.407e-05,2]
[424931566,1781289059000,-500.0,9.407e-05,2]
[424931561,1781289059000,-500.0,9.407e-05,2]
[424931559,1781289059000,-500.0,9.407e-05,2]
[424931565,1781289059000,-500.0,9.407e-05,2]
[424931563,1781289059000,-500.0,9.407e-05,2]
[424931562,1781289059000,-500.0,9.407e-05,2]
[424931564,1781289059000,-500.0,9.407e-05,2]
[424931560,1781289059000,-500.0,9.407e-05,2]
[424931557,1781289059000,-500.0,9.407e-05,2]
[424931558,1781289059000,-500.0,9.407e-05,2]
[424931556,1781289059000,-500.0,9.407e-05,2]
[424931551,1781289059000,-500.0,9.407e-05,2]
[424931554,1781289059000,-500.0,9.407e-05,2]
[424931538,1781289059000,-500.0,9.407e-05,2]
[424931550,1781289059000,-500.0,9.407e-05,2]
[424931552,1781289059000,-500.0,9.407e-05,2]
[424931536,1781289059000,-500.0,9.407e-05,2]
[424931539,1781289059000,-500.0,9.407e-05,2]
[424931543,1781289059000,-500.0,9.407e-05,2]
[424931537,1781289059000,-500.0,9.407e-05,2]
[424931545,1781289059000,-500.0,9.407e-05,2]
[424931544,1781289059000,-500.0,9.407e-05,2]
[424931548,1781289059000,-500.0,9.407e-05,2]
[424931547,1781289059000,-500.0,9.407e-05,2]
[424931555,1781289059000,-500.0,9.407e-05,2]
[424931549,1781289059000,-500.0,9.407e-05,2]
[424931553,1781289059000,-500.0,9.407e-05,2]
[424931568,1781289059000,-500.0,9.407e-05,2]
[424931546,1781289059000,-500.0,9.407e-05,2]
[424931578,1781289060000,-500.0,9.407e-05,2]
[424931582,1781289060000,-500.0,9.407e-05,2]
[424931581,1781289060000,-500.0,9.407e-05,2]
[424931580,1781289060000,-500.0,9.407e-05,2]
[424931579,1781289060000,-500.0,9.407e-05,2]
[424931574,1781289060000,-500.0,9.407e-05,2]
[424931569,1781289060000,-500.0,9.407e-05,2]
[424931576,1781289060000,-500.0,9.407e-05,2]
[424931577,1781289060000,-500.0,9.407e-05,2]
[424931571,1781289060000,-500.0,9.407e-05,2]
[424931572,1781289060000,-500.0,9.407e-05,2]
[424931575,1781289060000,-500.0,9.407e-05,2]
[424931587,1781289060000,-500.0,9.407e-05,2]
[424931573,1781289060000,-500.0,9.407e-05,2]
[424931570,1781289060000,-500.0,9.407e-05,2]
[424931586,1781289060000,-500.0,9.407e-05,2]
[424931589,1781289060000,-500.0,9.407e-05,2]
[424931584,1781289060000,-606.34390536,9.407e-05,2]
[424931602,1781289060000,-205358.56936252,9.408e-05,2]
[424931601,1781289060000,-1972.42706713,9.408e-05,2]
[424931600,1781289060000,-622.38500003,9.408e-05,2]
[424931599,1781289060000,-413.9,9.408e-05,2]
[424931585,1781289060000,-500.0,9.407e-05,2]
[424931596,1781289060000,-727.01842092,9.408e-05,2]
[424931595,1781289060000,-511.2450525,9.408e-05,2]
[424931598,1781289060000,-2627.04831143,9.408e-05,2]
[424931593,1781289060000,-10766.22843101,9.408e-05,2]
[424931591,1781289060000,-771509.22758691,9.408e-05,2]
[424931590,1781289060000,-500.0,9.407e-05,2]
[424931592,1781289060000,-1347.1,9.408e-05,2]
[424931583,1781289060000,-500.0,9.407e-05,2]
[424931588,1781289060000,-500.0,9.407e-05,2]
[424931594,1781289060000,-7628.2236292,9.408e-05,2]
[424931597,1781289060000,-657.7,9.408e-05,2]
[424931603,1781289186000,-15311.66319352,9.308e-05,2]
[424931606,1781289209000,-15311.66319352,9.308e-05,2]
[424931608,1781289232000,-709.091,9.122e-05,2]
[424931609,1781289284000,-1934.38338736,9.273e-05,2]
[424931610,1781289307000,-2000.0,9.273e-05,2]
[424931611,1781289330000,-207.27481237,9.272e-05,2]
[424931612,1781289381000,-4174.8181,9.208e-05,2]
[424931613,1781289435000,-1798.80895522,9.208e-05,2]
[424931614,1781289458000,-2133.23,8.936e-05,2]
[424931615,1781289511000,-1257.38,8.903e-05,2]
[424931616,1781289726000,-158.94,8.839e-05,2]
[424931617,1781289779000,-1000.0,8.96e-05,2]
[424931618,1781289833000,-514.27,8.665e-05,2]
[424931619,1781289886000,-685.40490128,8.96e-05,2]
[424931620,1781289940000,-160.0,8.964e-05,2]
[424931622,1781289952000,-383.14199659,9.138e-05,2]
[424931621,1781289952000,-150.0,9.005e-05,2]
[424931623,1781289993000,-184.13100341,9.138e-05,2]
[424931624,1781290046000,-172.651,9.138e-05,2]
[424931625,1781290047000,-183.94895646,9.138e-05,2]
[424931626,1781290047000,-150.0,9.139e-05,2]
[424931627,1781290047000,-109.33801348,9.204e-05,2]
[424931628,1781290100000,-1865.36488656,9.105e-05,2]
[424931629,1781290123000,-385.37,8.914e-05,2]
[424931630,1781290150000,-554.77,8.688e-05,2]
[424931631,1781290150000,-604.30884176,9.056e-05,2]
[424931632,1781290175000,-2500.0,9.056e-05,2]
[424931634,1781290199000,-3096.78465729,9.056e-05,2]
[424931635,1781290199000,-2422.61719387,9.056e-05,2]
[424931633,1781290199000,-3096.78465729,9.056e-05,2]
[424931638,1781290231000,-3006.83310806,9.056e-05,2]
[424931637,1781290231000,-300.0,9.055e-05,2]
[424931640,1781290231000,-206.83310806,9.104e-05,2]
[424931641,1781290231000,-127.54689193,9.104e-05,2]
[424931643,1781290231000,-83.18375706,9.104e-05,2]
[424931644,1781290231000,-369.35611627,9.104e-05,2]
[424931642,1781290231000,-174.96024294,9.104e-05,2]
[424931639,1781290231000,-293.16689194,9.104e-05,2]
[424931665,1781290232000,-500.0,9.104e-05,2]
[424931670,1781290232000,-500.0,9.104e-05,2]
[424931673,1781290232000,-529.34530851,9.104e-05,2]
[424931672,1781290232000,-500.0,9.104e-05,2]
[424931677,1781290232000,-500.0,9.104e-05,2]
[424931679,1781290232000,-500.0,9.104e-05,2]
[424931675,1781290232000,-500.0,9.104e-05,2]
[424931674,1781290232000,-500.0,9.104e-05,2]
[424931680,1781290232000,-500.0,9.104e-05,2]
[424931681,1781290232000,-500.0,9.104e-05,2]
[424931682,1781290232000,-500.0,9.104e-05,2]
[424931686,1781290232000,-500.0,9.104e-05,2]
[424931685,1781290232000,-500.0,9.104e-05,2]
[424931687,1781290232000,-500.0,9.104e-05,2]
[424931683,1781290232000,-500.0,9.104e-05,2]
[424931689,1781290232000,-500.0,9.104e-05,2]
[424931691,1781290232000,-500.0,9.104e-05,2]
[424931678,1781290232000,-500.0,9.104e-05,2]
[424931660,1781290232000,-500.0,9.104e-05,2]
[424931651,1781290232000,-500.0,9.104e-05,2]
[424931661,1781290232000,-500.0,9.104e-05,2]
[424931645,1781290232000,-500.0,9.104e-05,2]
[424931646,1781290232000,-500.0,9.104e-05,2]
[424931648,1781290232000,-500.0,9.104e-05,2]
[424931647,1781290232000,-177.8138438,9.104e-05,2]
[424931650,1781290232000,-214.65735344,9.104e-05,2]
[424931653,1781290232000,-500.0,9.104e-05,2]
[424931649,1781290232000,-500.0,9.104e-05,2]
[424931652,1781290232000,-500.0,9.104e-05,2]
[424931654,1781290232000,-500.0,9.104e-05,2]
[424931690,1781290232000,-500.0,9.104e-05,2]
[424931657,1781290232000,-500.0,9.104e-05,2]
[424931656,1781290232000,-500.0,9.104e-05,2]
[424931658,1781290232000,-500.0,9.104e-05,2]
[424931659,1781290232000,-500.0,9.104e-05,2]
[424931664,1781290232000,-500.0,9.104e-05,2]
[424931663,1781290232000,-500.0,9.104e-05,2]
[424931662,1781290232000,-534.57387271,9.104e-05,2]
[424931668,1781290232000,-500.0,9.104e-05,2]
[424931688,1781290232000,-500.0,9.104e-05,2]
[424931655,1781290232000,-500.0,9.104e-05,2]
[424931693,1781290232000,-500.0,9.104e-05,2]
[424931716,1781290232000,-500.0,9.104e-05,2]
[424931722,1781290232000,-500.0,9.104e-05,2]
[424931718,1781290232000,-500.0,9.104e-05,2]
[424931724,1781290232000,-500.0,9.104e-05,2]
[424931719,1781290232000,-500.0,9.104e-05,2]
[424931720,1781290232000,-500.0,9.104e-05,2]
[424931717,1781290232000,-500.0,9.104e-05,2]
[424931721,1781290232000,-500.0,9.104e-05,2]
[424931723,1781290232000,-500.0,9.104e-05,2]
[424931725,1781290232000,-500.0,9.104e-05,2]
[424931726,1781290232000,-500.0,9.104e-05,2]
[424931727,1781290232000,-284.43578511,9.104e-05,2]
[424931728,1781290232000,-500.0,9.104e-05,2]
[424931730,1781290232000,-1881155.92301344,9.105e-05,2]
[424931729,1781290232000,-183.94895645,9.104e-05,2]
[424931733,1781290232000,-17579.7312595,9.106e-05,2]
[424931732,1781290232000,-38865.65281049,9.106e-05,2]
[424931731,1781290232000,-183.94895645,9.105e-05,2]
[424931692,1781290232000,-500.0,9.104e-05,2]
[424931715,1781290232000,-500.0,9.104e-05,2]
[424931714,1781290232000,-500.0,9.104e-05,2]
[424931676,1781290232000,-500.0,9.104e-05,2]
[424931711,1781290232000,-500.0,9.104e-05,2]
[424931695,1781290232000,-500.0,9.104e-05,2]
[424931697,1781290232000,-500.0,9.104e-05,2]
[424931699,1781290232000,-500.0,9.104e-05,2]
[424931698,1781290232000,-500.0,9.104e-05,2]
[424931696,1781290232000,-500.0,9.104e-05,2]
[424931700,1781290232000,-500.0,9.104e-05,2]
[424931701,1781290232000,-500.0,9.104e-05,2]
[424931702,1781290232000,-500.0,9.104e-05,2]
[424931703,1781290232000,-500.0,9.104e-05,2]
[424931694,1781290232000,-500.0,9.104e-05,2]
[424931704,1781290232000,-500.0,9.104e-05,2]
[424931713,1781290232000,-500.0,9.104e-05,2]
[424931709,1781290232000,-500.0,9.104e-05,2]
[424931710,1781290232000,-500.0,9.104e-05,2]
[424931706,1781290232000,-500.0,9.104e-05,2]
[424931705,1781290232000,-500.0,9.104e-05,2]
[424931708,1781290232000,-500.0,9.104e-05,2]
[424931707,1781290232000,-500.0,9.104e-05,2]
[424931712,1781290232000,-500.0,9.104e-05,2]
[424931744,1781290234000,-2358.89656906,9.208e-05,2]
[424931734,1781290234000,-50983.88719121,9.106e-05,2]
[424931742,1781290234000,-358.21679173,9.208e-05,2]
[424931739,1781290234000,-150.0,9.195e-05,2]
[424931741,1781290234000,-24590.56113833,9.208e-05,2]
[424931740,1781290234000,-160.0,9.208e-05,2]
[424931737,1781290234000,-9310.23243435,9.156e-05,2]
[424931738,1781290234000,-129466.66076565,9.156e-05,2]
[424931736,1781290234000,-83555.46411749,9.156e-05,2]
[424931735,1781290234000,-19011.60856409,9.156e-05,2]
[424931743,1781290234000,-1000.90806288,9.208e-05,2]
[424931760,1781290238000,-586.89278139,9.208e-05,2]
[424931761,1781290238000,-776.0,9.208e-05,2]
[424931875,1781290240000,-1119.44662014,9.398e-05,2]
[424931862,1781290240000,-810919.84729289,9.208e-05,2]
[424931863,1781290240000,-544.0,9.208e-05,2]
[424931866,1781290240000,-2500.0,9.208e-05,2]
[424931865,1781290240000,-1640.4941,9.208e-05,2]
[424931864,1781290240000,-658864.67736372,9.208e-05,2]
[424931867,1781290240000,-7412.51175102,9.273e-05,2]
[424931870,1781290240000,-4799.33023697,9.32e-05,2]
[424931874,1781290240000,-1118126.64579554,9.398e-05,2]
[424931868,1781290240000,-150.0,9.286e-05,2]
[424931871,1781290240000,-504.59,9.345e-05,2]
[424931872,1781290240000,-1891.99,9.345e-05,2]
[424931873,1781290240000,-59736.1375041,9.353e-05,2]
[424931869,1781290240000,-1000.0,9.307e-05,2]
[424931884,1781290246000,-1686.73,9.398e-05,2]
[424931885,1781290246000,-76039.15859381,9.398e-05,2]
[424931886,1781290246000,-4858.29284502,9.398e-05,2]
[424931900,1781290248000,-1055.240201,9.398e-05,2]
[424931899,1781290248000,-544.30361766,9.398e-05,2]
[424931898,1781290248000,-616.96939535,9.398e-05,2]
[424931895,1781290248000,-608.0,9.398e-05,2]
[424931896,1781290248000,-1923.90000001,9.398e-05,2]
[424931897,1781290248000,-725.47261343,9.398e-05,2]
[424931903,1781290320000,-1043.146038,8.959e-05,2]
[424931905,1781290374000,-2000.0,9.005e-05,2]
[424931907,1781290398000,159.88927105,0.0001,5]
[424931906,1781290398000,-3314.068,9.005e-05,2]
[424931908,1781290448000,-660.77,8.825e-05,2]
[424931909,1781290471000,-147.619,8.825e-05,2]
[424931910,1781290524000,-500.0,9.004e-05,2]
[424931911,1781290577000,-500.0,9.003e-05,2]
[424931913,1781290630000,-2500.0,8.905e-05,2]
[424931915,1781290684000,-150.0,9.001e-05,2]
[424931917,1781290737000,-500.0,8.904e-05,2]
[424931924,1781290922000,-559.43,8.755e-05,2]
[424931925,1781290975000,-150.0,8.843e-05,2]
[424931926,1781291028000,-250.0,8.859e-05,2]
[424931927,1781291081000,-200.0,8.643e-05,2]
[424931928,1781291135000,-239.11,8.875e-05,2]
[424931931,1781291142000,-19.85554706,8.903e-05,2]
[424931929,1781291142000,-500.0,8.903e-05,2]
[424931930,1781291142000,-248.6170008,8.903e-05,2]
[424931932,1781291188000,-150.0,8.902e-05,2]
[424931933,1781291245000,-661.3,8.629e-05,2]
[424931936,1781291269000,-316.77791134,8.902e-05,2]
[424931934,1781291269000,-169.67,8.629e-05,2]
[424931938,1781291269000,-169.67,8.902e-05,2]
[424931937,1781291269000,-95.71266196,8.902e-05,2]
[424931935,1781291269000,-158.42,8.719e-05,2]
[424931939,1781291321000,-1722.53,8.486e-05,2]
[424931949,1781291321000,-500.0,8.902e-05,2]
[424931950,1781291321000,-500.0,8.902e-05,2]
[424931948,1781291321000,-205.65706715,8.902e-05,2]
[424931946,1781291321000,-211.75499441,8.902e-05,2]
[424931947,1781291321000,-294.34293285,8.902e-05,2]
[424931945,1781291321000,-474.46969066,8.902e-05,2]
[424931944,1781291321000,-234.61733804,8.902e-05,2]
[424931942,1781291321000,-868.85480048,8.886e-05,2]
[424931943,1781291321000,-1052.73964308,8.902e-05,2]
[424931940,1781291321000,-150.0,8.715e-05,2]
[424931941,1781291321000,-2986.77939952,8.886e-05,2]
[424931951,1781291322000,-500.0,8.902e-05,2]
[424931952,1781291322000,-500.0,8.902e-05,2]
[424931953,1781291322000,-374.40989151,8.902e-05,2]
[424931956,1781291330000,-275.55657712,8.805e-05,2]
[424931955,1781291330000,-3313.85191467,8.805e-05,2]
[424931954,1781291330000,-3313.85191467,8.805e-05,2]
[424931957,1781291350000,-6416.56458775,8.46e-05,2]
[424931964,1781291375000,-2038.34854511,8.805e-05,2]
[424931963,1781291375000,-3363.13968703,8.805e-05,2]
[424931962,1781291375000,-1684.66171055,8.805e-05,2]
[424931960,1781291375000,-405.72,8.529e-05,2]
[424931961,1781291375000,-150.0,8.804e-05,2]
[424931959,1781291375000,-1211.53541225,8.46e-05,2]
[424931958,1781291375000,-550.0,8.46e-05,2]
[424931967,1781291380000,-531.46541457,8.805e-05,2]
[424931966,1781291380000,-3588.218259,8.805e-05,2]
[424931965,1781291380000,-3588.218259,8.805e-05,2]
[424931969,1781291405000,-1240.10302678,8.803e-05,2]
[424931968,1781291405000,-3742.37629765,8.803e-05,2]
[424931976,1781291432000,-2335.22036956,8.803e-05,2]
[424931975,1781291432000,-275.75637362,8.803e-05,2]
[424931974,1781291432000,-127432.64238827,8.803e-05,2]
[424931973,1781291432000,-411.53765,8.803e-05,2]
[424931972,1781291432000,-1135.66,8.803e-05,2]
[424931971,1781291432000,-2828.10168465,8.803e-05,2]
[424931984,1781291438000,-500.0,8.802e-05,2]
[424931977,1781291438000,-500.0,8.802e-05,2]
[424931978,1781291438000,-163.37086966,8.802e-05,2]
[424931979,1781291438000,-58.37366827,8.802e-05,2]
[424931981,1781291438000,-500.0,8.802e-05,2]
[424931980,1781291438000,-332.12878346,8.802e-05,2]
[424931982,1781291438000,-500.0,8.802e-05,2]
[424931988,1781291438000,-219.09969241,8.802e-05,2]
[424931983,1781291438000,-500.0,8.802e-05,2]